fUSD/lending_fUSD_20260531
["ID","MTS","AMOUNT","RATE_DAILY","PERIOD"]
[423498957,1780169439000,-500.0,0.00013698,2]
[423498960,1780169439000,-500.0,0.00013698,2]
[423498962,1780169439000,-500.0,0.00013698,2]
[423498964,1780169439000,-500.0,0.00013698,2]
[423498965,1780169439000,-500.0,0.00013698,2]
[423498963,1780169439000,-500.0,0.00013698,2]
[423498966,1780169439000,-500.0,0.00013698,2]
[423498953,1780169439000,-549.93789521,0.00013698,2]
[423499002,1780169439000,-500.0,0.00013698,2]
[423499031,1780169439000,-500.0,0.00013698,2]
[423499001,1780169439000,-500.0,0.00013698,2]
[423499032,1780169439000,-500.0,0.00013698,2]
[423499039,1780169439000,-500.0,0.00013698,2]
[423499038,1780169439000,-500.0,0.00013698,2]
[423499040,1780169439000,-500.0,0.00013698,2]
[423499041,1780169439000,-500.0,0.00013698,2]
[423499042,1780169439000,-500.0,0.00013698,2]
[423499047,1780169439000,-2089.59,0.00013698,2]
[423499045,1780169439000,-500.0,0.00013698,2]
[423499046,1780169439000,-500.0,0.00013698,2]
[423499044,1780169439000,-500.0,0.00013698,2]
[423499043,1780169439000,-500.0,0.00013698,2]
[423499049,1780169439000,-500.0,0.00013698,2]
[423499050,1780169439000,-2089.59,0.00013698,2]
[423499034,1780169439000,-500.0,0.00013698,2]
[423499048,1780169439000,-2089.59,0.00013698,2]
[423499052,1780169439000,-2089.59,0.00013698,2]
[423499054,1780169439000,-2089.59,0.00013698,2]
[423499053,1780169439000,-500.0,0.00013698,2]
[423499055,1780169439000,-500.0,0.00013698,2]
[423499057,1780169439000,-500.0,0.00013698,2]
[423499058,1780169439000,-2089.59,0.00013698,2]
[423499059,1780169439000,-500.0,0.00013698,2]
[423499062,1780169439000,-2089.59,0.00013698,2]
[423499056,1780169439000,-2089.59,0.00013698,2]
[423499061,1780169439000,-2089.59,0.00013698,2]
[423499063,1780169439000,-2089.59,0.00013698,2]
[423499064,1780169439000,-2089.59,0.00013698,2]
[423499000,1780169439000,-500.0,0.00013698,2]
[423499051,1780169439000,-500.0,0.00013698,2]
[423499030,1780169439000,-500.0,0.00013698,2]
[423499060,1780169439000,-2089.59,0.00013698,2]
[423499029,1780169439000,-512.05018733,0.00013698,2]
[423499033,1780169439000,-500.0,0.00013698,2]
[423499005,1780169439000,-551.39,0.00013698,2]
[423499004,1780169439000,-551.39,0.00013698,2]
[423499009,1780169439000,-551.39,0.00013698,2]
[423499007,1780169439000,-551.39,0.00013698,2]
[423499011,1780169439000,-551.39,0.00013698,2]
[423499003,1780169439000,-245.97684644,0.00013698,2]
[423499010,1780169439000,-551.39,0.00013698,2]
[423499012,1780169439000,-551.39,0.00013698,2]
[423499008,1780169439000,-551.39,0.00013698,2]
[423499013,1780169439000,-551.39,0.00013698,2]
[423499014,1780169439000,-551.39,0.00013698,2]
[423499016,1780169439000,-551.39,0.00013698,2]
[423499015,1780169439000,-551.39,0.00013698,2]
[423499006,1780169439000,-551.39,0.00013698,2]
[423499020,1780169439000,-551.39,0.00013698,2]
[423499019,1780169439000,-551.39,0.00013698,2]
[423499035,1780169439000,-500.0,0.00013698,2]
[423499037,1780169439000,-500.0,0.00013698,2]
[423499027,1780169439000,-500.0,0.00013698,2]
[423499028,1780169439000,-500.0,0.00013698,2]
[423499026,1780169439000,-500.0,0.00013698,2]
[423499036,1780169439000,-500.0,0.00013698,2]
[423499024,1780169439000,-500.0,0.00013698,2]
[423499023,1780169439000,-500.0,0.00013698,2]
[423499021,1780169439000,-503.21523285,0.00013698,2]
[423499022,1780169439000,-500.0,0.00013698,2]
[423499017,1780169439000,-551.39,0.00013698,2]
[423499025,1780169439000,-500.0,0.00013698,2]
[423499018,1780169439000,-551.39,0.00013698,2]
[423499098,1780169440000,-500.0,0.00013698,2]
[423499097,1780169440000,-500.0,0.00013698,2]
[423499099,1780169440000,-500.0,0.00013698,2]
[423499093,1780169440000,-500.0,0.00013698,2]
[423499094,1780169440000,-500.0,0.00013698,2]
[423499096,1780169440000,-500.0,0.00013698,2]
[423499092,1780169440000,-500.0,0.00013698,2]
[423499090,1780169440000,-500.0,0.00013698,2]
[423499095,1780169440000,-500.0,0.00013698,2]
[423499100,1780169440000,-500.0,0.00013698,2]
[423499105,1780169440000,-500.0,0.00013698,2]
[423499103,1780169440000,-553.36280109,0.00013698,2]
[423499104,1780169440000,-500.0,0.00013698,2]
[423499107,1780169440000,-500.0,0.00013698,2]
[423499108,1780169440000,-500.0,0.00013698,2]
[423499106,1780169440000,-500.0,0.00013698,2]
[423499101,1780169440000,-500.0,0.00013698,2]
[423499109,1780169440000,-500.0,0.00013698,2]
[423499110,1780169440000,-500.0,0.00013698,2]
[423499111,1780169440000,-500.0,0.00013698,2]
[423499091,1780169440000,-191.0,0.00013698,2]
[423499102,1780169440000,-500.0,0.00013698,2]
[423499088,1780169440000,-500.0,0.00013698,2]
[423499072,1780169440000,-500.0,0.00013698,2]
[423499087,1780169440000,-500.0,0.00013698,2]
[423499112,1780169440000,-500.0,0.00013698,2]
[423499065,1780169440000,-2089.59,0.00013698,2]
[423499066,1780169440000,-2089.59,0.00013698,2]
[423499069,1780169440000,-2089.59,0.00013698,2]
[423499068,1780169440000,-2089.59,0.00013698,2]
[423499067,1780169440000,-2089.59,0.00013698,2]
[423499071,1780169440000,-500.0,0.00013698,2]
[423499070,1780169440000,-500.0,0.00013698,2]
[423499074,1780169440000,-500.0,0.00013698,2]
[423499073,1780169440000,-500.0,0.00013698,2]
[423499089,1780169440000,-500.0,0.00013698,2]
[423499075,1780169440000,-500.0,0.00013698,2]
[423499077,1780169440000,-416.10004967,0.00013698,2]
[423499078,1780169440000,-500.0,0.00013698,2]
[423499080,1780169440000,-500.0,0.00013698,2]
[423499081,1780169440000,-500.0,0.00013698,2]
[423499079,1780169440000,-500.0,0.00013698,2]
[423499082,1780169440000,-500.0,0.00013698,2]
[423499083,1780169440000,-500.0,0.00013698,2]
[423499085,1780169440000,-500.0,0.00013698,2]
[423499086,1780169440000,-500.0,0.00013698,2]
[423499084,1780169440000,-500.0,0.00013698,2]
[423499076,1780169440000,-500.0,0.00013698,2]
[423499113,1780169440000,-500.0,0.00013698,2]
[423499117,1780169440000,-500.0,0.00013698,2]
[423499115,1780169440000,-500.0,0.00013698,2]
[423499142,1780169440000,-151.0,0.00013699,2]
[423499146,1780169440000,-151.0,0.00013699,2]
[423499144,1780169440000,-151.0,0.00013699,2]
[423499145,1780169440000,-151.0,0.00013699,2]
[423499148,1780169440000,-151.0,0.00013699,2]
[423499147,1780169440000,-151.0,0.00013699,2]
[423499151,1780169440000,-151.0,0.00013699,2]
[423499152,1780169440000,-151.0,0.00013699,2]
[423499150,1780169440000,-151.0,0.00013699,2]
[423499149,1780169440000,-151.0,0.00013699,2]
[423499153,1780169440000,-151.0,0.00013699,2]
[423499154,1780169440000,-151.0,0.00013699,2]
[423499156,1780169440000,-151.0,0.00013699,2]
[423499159,1780169440000,-151.0,0.00013699,2]
[423499162,1780169440000,-151.0,0.00013699,2]
[423499161,1780169440000,-151.0,0.00013699,2]
[423499157,1780169440000,-151.0,0.00013699,2]
[423499163,1780169440000,-151.0,0.00013699,2]
[423499158,1780169440000,-151.0,0.00013699,2]
[423499160,1780169440000,-151.0,0.00013699,2]
[423499114,1780169440000,-500.0,0.00013698,2]
[423499143,1780169440000,-151.0,0.00013699,2]
[423499141,1780169440000,-151.0,0.00013699,2]
[423499155,1780169440000,-151.0,0.00013699,2]
[423499136,1780169440000,-151.0,0.00013699,2]
[423499120,1780169440000,-151.0,0.00013699,2]
[423499137,1780169440000,-151.0,0.00013699,2]
[423499121,1780169440000,-151.0,0.00013699,2]
[423499116,1780169440000,-500.0,0.00013698,2]
[423499118,1780169440000,-604.59973657,0.00013698,2]
[423499119,1780169440000,-721.0,0.00013699,2]
[423499124,1780169440000,-151.0,0.00013699,2]
[423499123,1780169440000,-151.0,0.00013699,2]
[423499125,1780169440000,-151.0,0.00013699,2]
[423499127,1780169440000,-151.0,0.00013699,2]
[423499128,1780169440000,-151.0,0.00013699,2]
[423499122,1780169440000,-151.0,0.00013699,2]
[423499135,1780169440000,-151.0,0.00013699,2]
[423499129,1780169440000,-151.0,0.00013699,2]
[423499130,1780169440000,-151.0,0.00013699,2]
[423499131,1780169440000,-151.0,0.00013699,2]
[423499132,1780169440000,-151.0,0.00013699,2]
[423499133,1780169440000,-151.0,0.00013699,2]
[423499134,1780169440000,-151.0,0.00013699,2]
[423499140,1780169440000,-151.0,0.00013699,2]
[423499138,1780169440000,-151.0,0.00013699,2]
[423499126,1780169440000,-151.0,0.00013699,2]
[423499139,1780169440000,-151.0,0.00013699,2]
[423499200,1780169441000,-151.0,0.00013699,2]
[423499202,1780169441000,-166.66,0.00013699,2]
[423499198,1780169441000,-151.0,0.00013699,2]
[423499204,1780169441000,-2500.0,0.00013699,2]
[423499203,1780169441000,-727.47,0.00013699,2]
[423499201,1780169441000,-200.0,0.00013699,2]
[423499195,1780169441000,-151.0,0.00013699,2]
[423499193,1780169441000,-151.0,0.00013699,2]
[423499191,1780169441000,-151.0,0.00013699,2]
[423499196,1780169441000,-151.0,0.00013699,2]
[423499207,1780169441000,-1381.0,0.00013699,2]
[423499199,1780169441000,-151.0,0.00013699,2]
[423499210,1780169441000,-1381.0,0.00013699,2]
[423499219,1780169441000,-1381.0,0.00013699,2]
[423499208,1780169441000,-1381.0,0.00013699,2]
[423499206,1780169441000,-1381.0,0.00013699,2]
[423499212,1780169441000,-1381.0,0.00013699,2]
[423499211,1780169441000,-1381.0,0.00013699,2]
[423499213,1780169441000,-1381.0,0.00013699,2]
[423499214,1780169441000,-1381.0,0.00013699,2]
[423499215,1780169441000,-1381.0,0.00013699,2]
[423499218,1780169441000,-1381.0,0.00013699,2]
[423499216,1780169441000,-1381.0,0.00013699,2]
[423499217,1780169441000,-1381.0,0.00013699,2]
[423499221,1780169441000,-1381.0,0.00013699,2]
[423499194,1780169441000,-151.0,0.00013699,2]
[423499205,1780169441000,-1381.0,0.00013699,2]
[423499197,1780169441000,-151.0,0.00013699,2]
[423499169,1780169441000,-151.0,0.00013699,2]
[423499190,1780169441000,-151.0,0.00013699,2]
[423499220,1780169441000,-1381.0,0.00013699,2]
[423499164,1780169441000,-151.0,0.00013699,2]
[423499167,1780169441000,-151.0,0.00013699,2]
[423499165,1780169441000,-151.0,0.00013699,2]
[423499166,1780169441000,-151.0,0.00013699,2]
[423499168,1780169441000,-151.0,0.00013699,2]
[423499170,1780169441000,-151.0,0.00013699,2]
[423499174,1780169441000,-151.0,0.00013699,2]
[423499171,1780169441000,-151.0,0.00013699,2]
[423499172,1780169441000,-151.0,0.00013699,2]
[423499173,1780169441000,-151.0,0.00013699,2]
[423499175,1780169441000,-151.0,0.00013699,2]
[423499192,1780169441000,-151.0,0.00013699,2]
[423499177,1780169441000,-151.0,0.00013699,2]
[423499180,1780169441000,-151.0,0.00013699,2]
[423499178,1780169441000,-151.0,0.00013699,2]
[423499179,1780169441000,-151.0,0.00013699,2]
[423499184,1780169441000,-151.0,0.00013699,2]
[423499181,1780169441000,-151.0,0.00013699,2]
[423499186,1780169441000,-151.0,0.00013699,2]
[423499185,1780169441000,-151.0,0.00013699,2]
[423499183,1780169441000,-151.0,0.00013699,2]
[423499182,1780169441000,-151.0,0.00013699,2]
[423499187,1780169441000,-151.0,0.00013699,2]
[423499189,1780169441000,-151.0,0.00013699,2]
[423499188,1780169441000,-151.0,0.00013699,2]
[423499176,1780169441000,-151.0,0.00013699,2]
[423499222,1780169441000,-1381.0,0.00013699,2]
[423499209,1780169441000,-1381.0,0.00013699,2]
[423499223,1780169441000,-1381.0,0.00013699,2]
[423499255,1780169441000,-782.06953884,0.00013699,2]
[423499256,1780169441000,-782.06953884,0.00013699,2]
[423499257,1780169441000,-782.06953884,0.00013699,2]
[423499259,1780169441000,-782.06953884,0.00013699,2]
[423499258,1780169441000,-782.06953884,0.00013699,2]
[423499260,1780169441000,-782.06953884,0.00013699,2]
[423499262,1780169441000,-782.06953884,0.00013699,2]
[423499261,1780169441000,-782.06953884,0.00013699,2]
[423499263,1780169441000,-782.06953884,0.00013699,2]
[423499265,1780169441000,-782.06953884,0.00013699,2]
[423499267,1780169441000,-782.06953884,0.00013699,2]
[423499264,1780169441000,-782.06953884,0.00013699,2]
[423499254,1780169441000,-782.06953884,0.00013699,2]
[423499266,1780169441000,-782.06953884,0.00013699,2]
[423499270,1780169441000,-782.06953884,0.00013699,2]
[423499269,1780169441000,-782.06953884,0.00013699,2]
[423499273,1780169441000,-782.06953884,0.00013699,2]
[423499272,1780169441000,-782.06953884,0.00013699,2]
[423499274,1780169441000,-782.06953884,0.00013699,2]
[423499276,1780169441000,-782.06953884,0.00013699,2]
[423499275,1780169441000,-782.06953884,0.00013699,2]
[423499281,1780169441000,-782.06953884,0.00013699,2]
[423499280,1780169441000,-782.06953884,0.00013699,2]
[423499278,1780169441000,-782.06953884,0.00013699,2]
[423499277,1780169441000,-782.06953884,0.00013699,2]
[423499224,1780169441000,-1381.0,0.00013699,2]
[423499268,1780169441000,-782.06953884,0.00013699,2]
[423499253,1780169441000,-782.06953884,0.00013699,2]
[423499271,1780169441000,-782.06953884,0.00013699,2]
[423499252,1780169441000,-782.06953884,0.00013699,2]
[423499251,1780169441000,-782.06953884,0.00013699,2]
[423499226,1780169441000,-1381.0,0.00013699,2]
[423499228,1780169441000,-1394.82970576,0.00013699,2]
[423499225,1780169441000,-1381.0,0.00013699,2]
[423499227,1780169441000,-1381.0,0.00013699,2]
[423499230,1780169441000,-782.06953884,0.00013699,2]
[423499229,1780169441000,-782.06953884,0.00013699,2]
[423499232,1780169441000,-782.06953884,0.00013699,2]
[423499233,1780169441000,-782.06953884,0.00013699,2]
[423499234,1780169441000,-782.06953884,0.00013699,2]
[423499236,1780169441000,-782.06953884,0.00013699,2]
[423499235,1780169441000,-782.06953884,0.00013699,2]
[423499237,1780169441000,-782.06953884,0.00013699,2]
[423499231,1780169441000,-782.06953884,0.00013699,2]
[423499279,1780169441000,-782.06953884,0.00013699,2]
[423499250,1780169441000,-782.06953884,0.00013699,2]
[423499238,1780169441000,-782.06953884,0.00013699,2]
[423499248,1780169441000,-782.06953884,0.00013699,2]
[423499249,1780169441000,-782.06953884,0.00013699,2]
[423499246,1780169441000,-782.06953884,0.00013699,2]
[423499245,1780169441000,-782.06953884,0.00013699,2]
[423499247,1780169441000,-782.06953884,0.00013699,2]
[423499244,1780169441000,-782.06953884,0.00013699,2]
[423499243,1780169441000,-782.06953884,0.00013699,2]
[423499241,1780169441000,-782.06953884,0.00013699,2]
[423499242,1780169441000,-782.06953884,0.00013699,2]
[423499240,1780169441000,-782.06953884,0.00013699,2]
[423499239,1780169441000,-782.06953884,0.00013699,2]
[423499306,1780169442000,-19847.5378624,0.00013898,2]
[423499304,1780169442000,-1680.0,0.00013859,2]
[423499300,1780169442000,-150.0,0.00013752,2]
[423499307,1780169442000,-150.0,0.00013899,2]
[423499305,1780169442000,-11151.92223723,0.00013898,2]
[423499302,1780169442000,-166.66,0.00013836,2]
[423499308,1780169442000,-150.0,0.00013899,2]
[423499316,1780169442000,-150.0,0.00014142,2]
[423499310,1780169442000,-46857.58197323,0.0001399,2]
[423499312,1780169442000,-500.0,0.00014045,2]
[423499314,1780169442000,-166.66,0.0001411,2]
[423499311,1780169442000,-150.0,0.00014045,2]
[423499303,1780169442000,-2000.0,0.0001384,2]
[423499313,1780169442000,-500.0,0.00014045,2]
[423499309,1780169442000,-166.66,0.00013973,2]
[423499301,1780169442000,-420.0,0.00013823,2]
[423499285,1780169442000,-782.06953884,0.00013699,2]
[423499296,1780169442000,-782.06953884,0.00013699,2]
[423499315,1780169442000,-150.0,0.00014142,2]
[423499283,1780169442000,-782.06953884,0.00013699,2]
[423499282,1780169442000,-782.06953884,0.00013699,2]
[423499284,1780169442000,-782.06953884,0.00013699,2]
[423499286,1780169442000,-782.06953884,0.00013699,2]
[423499288,1780169442000,-782.06953884,0.00013699,2]
[423499294,1780169442000,-782.06953884,0.00013699,2]
[423499290,1780169442000,-782.06953884,0.00013699,2]
[423499293,1780169442000,-782.06953884,0.00013699,2]
[423499289,1780169442000,-782.06953884,0.00013699,2]
[423499287,1780169442000,-782.06953884,0.00013699,2]
[423499295,1780169442000,-782.06953884,0.00013699,2]
[423499291,1780169442000,-782.06953884,0.00013699,2]
[423499292,1780169442000,-782.06953884,0.00013699,2]
[423499297,1780169442000,-151.62,0.000137,2]
[423499299,1780169442000,-255.0,0.00013732,2]
[423499320,1780169442000,-166.66,0.00014247,2]
[423499298,1780169442000,-163.44,0.000137,2]
[423499319,1780169442000,-150.0,0.00014191,2]
[423499338,1780169442000,-19847.5378624,0.000149,2]
[423499342,1780169442000,-2089.59,0.00014999,2]
[423499340,1780169442000,-500.0,0.00014999,2]
[423499341,1780169442000,-2089.59,0.00014999,2]
[423499343,1780169442000,-2089.59,0.00014999,2]
[423499345,1780169442000,-2089.59,0.00014999,2]
[423499344,1780169442000,-2089.59,0.00014999,2]
[423499346,1780169442000,-2089.59,0.00014999,2]
[423499349,1780169442000,-1174613.77904979,0.00015,2]
[423499347,1780169442000,-2089.77358358,0.00014999,2]
[423499350,1780169442000,-151.0,0.00015,2]
[423499352,1780169442000,-915809.2911671,0.00015,2]
[423499351,1780169442000,-700.67312814,0.00015,14]
[423499353,1780169442000,-700.96573756,0.00015,2]
[423499317,1780169442000,-11151.92223723,0.00014149,2]
[423499339,1780169442000,-433.0,0.00014932,2]
[423499354,1780169442000,-2499.2819,0.00015,2]
[423499348,1780169442000,-150.0,0.00015,2]
[423499335,1780169442000,-11151.92223723,0.000149,2]
[423499337,1780169442000,-300.0,0.000149,5]
[423499321,1780169442000,-150.0,0.00014338,2]
[423499322,1780169442000,-166.66,0.00014384,2]
[423499325,1780169442000,-19847.5378624,0.00014399,2]
[423499318,1780169442000,-19847.5378624,0.00014149,2]
[423499324,1780169442000,-11151.92223723,0.00014399,2]
[423499326,1780169442000,-154.07,0.00014399,2]
[423499332,1780169442000,-11151.92223723,0.0001465,2]
[423499323,1780169442000,-150.0,0.00014386,2]
[423499329,1780169442000,-150.0,0.0001463,2]
[423499330,1780169442000,-150.0,0.0001463,2]
[423499327,1780169442000,-215.58360558,0.00014408,2]
[423499331,1780169442000,-150.0,0.0001463,2]
[423499336,1780169442000,-900.0,0.000149,5]
[423499333,1780169442000,-19847.5378624,0.0001465,2]
[423499334,1780169442000,-187.71242717,0.0001465,10]
[423499328,1780169442000,-150.0,0.00014484,2]
[423499383,1780169445000,-644.33229365,0.000149,2]
[423499384,1780169445000,-2736.2790868,0.00015,2]
[423499386,1780169445000,-3132.17946494,0.00015,2]
[423499385,1780169445000,-1216.0,0.00015,2]
[423499401,1780170632000,-1577.73625886,0.00011349,2]
[423499404,1780170632000,-399.42374114,0.00011349,2]
[423499400,1780170632000,-448.18,0.00011312,2]
[423499403,1780170632000,-500.0,0.00011348,2]
[423499402,1780170632000,-500.0,0.00011348,2]
[423499405,1780170632000,-996.33,0.00011398,2]
[423499406,1780170632000,-268.13,0.00011414,2]
[423499413,1780170632000,-164.94,0.00011581,2]
[423499407,1780170632000,-150.0,0.00011438,2]
[423499410,1780170632000,-351.72,0.00011447,2]
[423499414,1780170632000,-996.33,0.00011683,2]
[423499412,1780170632000,-2000.0,0.00011504,2]
[423499411,1780170632000,-164.94,0.00011447,2]
[423499409,1780170632000,-1498.06,0.00011447,2]
[423499408,1780170632000,-1200.0,0.00011444,2]
[423499417,1780170633000,-209.12966642,0.00011942,2]
[423499415,1780170633000,-164.94,0.00011715,2]
[423499416,1780170633000,-164.94,0.00011849,2]
[423499419,1780170633000,-164.94,0.00011983,2]
[423499418,1780170633000,-996.33,0.00011968,2]
[423499422,1780170633000,-164.94,0.00012251,2]
[423499420,1780170633000,-335.47,0.00012104,2]
[423499423,1780170633000,-996.33,0.00012253,2]
[423499421,1780170633000,-164.94,0.00012117,2]
[423499427,1780170633000,-1290.2133,0.00012334,2]
[423499425,1780170633000,-569.44337938,0.00012333,2]
[423499428,1780170633000,-500.0,0.00012334,2]
[423499426,1780170633000,-481.32516169,0.00012333,2]
[423499429,1780170633000,-25746.5067734,0.00012334,2]
[423499431,1780170633000,-70763.13947091,0.00012334,2]
[423499430,1780170633000,-390.26134714,0.00011348,2]
[423499432,1780170633000,-13221.28590755,0.00012334,2]
[423499424,1780170633000,-1575.15,0.00012329,2]
[423499435,1780170637000,-500.0,0.00011348,2]
[423499436,1780170637000,-500.0,0.00011348,2]
[423499438,1780170637000,-500.0,0.00011348,2]
[423499437,1780170637000,-500.0,0.00011348,2]
[423499478,1780170638000,-164.94,0.00012518,2]
[423499477,1780170638000,-150.0,0.00012509,2]
[423499473,1780170638000,-150.0,0.00012468,2]
[423499475,1780170638000,-150.0,0.00012495,2]
[423499476,1780170638000,-150.0,0.00012501,2]
[423499468,1780170638000,-2243.8256,0.00012434,2]
[423499472,1780170638000,-166.01,0.00012461,2]
[423499471,1780170638000,-150.0,0.00012436,2]
[423499470,1780170638000,-2500.0,0.00012434,2]
[423499479,1780170638000,-151.0,0.00012531,2]
[423499474,1780170638000,-223.13192573,0.00012472,2]
[423499482,1780170638000,-150.0,0.00012534,2]
[423499486,1780170638000,-500.0,0.00012534,2]
[423499481,1780170638000,-150.0,0.00012533,2]
[423499483,1780170638000,-191.0,0.00012534,2]
[423499484,1780170638000,-2500000.0,0.00012534,2]
[423499485,1780170638000,-2000.0,0.00012534,2]
[423499469,1780170638000,-5000.0,0.00012434,2]
[423499487,1780170638000,-250.0,0.00012534,2]
[423499488,1780170638000,-250.0,0.00012534,2]
[423499490,1780170638000,-150.0,0.00012567,2]
[423499489,1780170638000,-996.33,0.00012538,2]
[423499493,1780170638000,-1680.0,0.00012588,2]
[423499491,1780170638000,-150.0,0.00012575,2]
[423499496,1780170638000,-13636.45021415,0.00012612,2]
[423499480,1780170638000,-151.0,0.00012531,2]
[423499467,1780170638000,-29493.5363,0.00012434,2]
[423499459,1780170638000,-14452.9305311,0.00012424,2]
[423499464,1780170638000,-204.89987102,0.00012434,2]
[423499497,1780170638000,-150.0,0.00012615,2]
[423499440,1780170638000,-500.0,0.00011348,2]
[423499439,1780170638000,-500.0,0.00011348,2]
[423499443,1780170638000,-500.0,0.00011348,2]
[423499442,1780170638000,-500.0,0.00011348,2]
[423499441,1780170638000,-500.0,0.00011348,2]
[423499444,1780170638000,-500.0,0.00011348,2]
[423499445,1780170638000,-500.0,0.00011348,2]
[423499446,1780170638000,-500.0,0.00011348,2]
[423499448,1780170638000,-500.0,0.00011348,2]
[423499447,1780170638000,-500.0,0.00011348,2]
[423499452,1780170638000,-150.0,0.00012403,2]
[423499466,1780170638000,-429.55486244,0.00012434,2]
[423499449,1780170638000,-619520.87614814,0.00012334,2]
[423499451,1780170638000,-150.0,0.00012403,2]
[423499453,1780170638000,-150.0,0.00012403,2]
[423499454,1780170638000,-150.34604901,0.00012403,2]
[423499455,1780170638000,-150.0,0.00012403,2]
[423499457,1780170638000,-150.0,0.00012403,2]
[423499456,1780170638000,-150.0,0.00012403,2]
[423499458,1780170638000,-150.0,0.00012403,2]
[423499460,1780170638000,-150.0,0.00012433,2]
[423499462,1780170638000,-20642.0837018,0.00012434,2]
[423499463,1780170638000,-518.43964431,0.00012434,2]
[423499465,1780170638000,-13636.4502142,0.00012434,2]
[423499461,1780170638000,-829.60131988,0.00012434,2]
[423499450,1780170638000,-164.94,0.00012384,2]
[423499494,1780170638000,-150.0,0.000126,2]
[423499492,1780170638000,-150.0,0.00012586,2]
[423499498,1780170638000,-150.0,0.00012632,2]
[423499552,1780170638000,-20642.0837018,0.00012968,2]
[423499558,1780170638000,-150.0,0.00013026,2]
[423499568,1780170638000,-150.0,0.00013092,2]
[423499564,1780170638000,-150.0,0.00013059,2]
[423499566,1780170638000,-500.0,0.00013082,2]
[423499572,1780170638000,-150.0,0.00013125,2]
[423499562,1780170638000,-150.0,0.00013046,2]
[423499570,1780170638000,-150.0,0.00013092,2]
[423499574,1780170638000,-150.0,0.00013138,2]
[423499588,1780170638000,-150.0,0.0001323,2]
[423499576,1780170638000,-150.0,0.00013145,2]
[423499579,1780170638000,-20642.0837018,0.00013146,2]
[423499593,1780170638000,-150.0,0.00013256,2]
[423499583,1780170638000,-150.0,0.00013157,2]
[423499597,1780170638000,-150.0,0.00013289,2]
[423499581,1780170638000,-13636.45021415,0.00013146,2]
[423499584,1780170638000,-150.0,0.0001319,2]
[423499595,1780170638000,-150.0,0.00013264,2]
[423499586,1780170638000,-150.0,0.00013223,2]
[423499599,1780170638000,-150.0,0.00013321,2]
[423499601,1780170638000,-150.0,0.00013321,2]
[423499604,1780170638000,-20642.0837018,0.00013324,2]
[423499606,1780170638000,-150.0,0.00013354,2]
[423499603,1780170638000,-150.0,0.00013321,2]
[423499608,1780170638000,-150.0,0.00013357,2]
[423499560,1780170638000,-150.0,0.00013039,2]
[423499556,1780170638000,-150.0,0.00012993,2]
[423499590,1780170638000,-150.0,0.00013251,2]
[423499550,1780170638000,-150.0,0.00012961,2]
[423499554,1780170638000,-13636.45021415,0.00012968,2]
[423499500,1780170638000,-164.94,0.00012652,2]
[423499513,1780170638000,-150.0,0.00012764,2]
[423499507,1780170638000,-150.0,0.00012721,2]
[423499505,1780170638000,-150.0,0.00012698,2]
[423499512,1780170638000,-150.0,0.00012747,2]
[423499501,1780170638000,-150.0,0.00012665,2]
[423499516,1780170638000,-150.0,0.0001277,2]